fUSD/lending_fUSD_20250212
["ID","MTS","AMOUNT","RATE_DAILY","PERIOD"]
[352895669,1739393443316,-500.0,0.00016554,2]
[352895671,1739393443326,-500.0,0.00016554,2]
[352895673,1739393443336,-500.0,0.00016554,2]
[352895675,1739393443346,-491.77,0.00016556,2]
[352895677,1739393443356,-150.0,0.00016556,2]
[352895679,1739393443365,-500.0,0.00016556,2]
[352895681,1739393443375,-500.0,0.00016556,2]
[352895683,1739393443385,-500.0,0.00016556,2]
[352895685,1739393443394,-500.0,0.00016556,2]
[352895687,1739393443404,-602.14,0.00016556,2]
[352895707,1739393443586,-656.08,0.00016556,2]
[352895711,1739393443598,-500.0,0.00016556,2]
[352895714,1739393443607,-3211.18,0.00016556,2]
[352895717,1739393443617,-500.0,0.00016556,2]
[352895720,1739393443627,-630.78,0.00016556,2]
[352895723,1739393443636,-527.26,0.00016556,2]
[352895726,1739393443646,-501.68,0.00016556,2]
[352895728,1739393443655,-1078.69,0.00016556,2]
[352895730,1739393443664,-500.0,0.00016556,2]
[352895732,1739393443674,-500.0,0.00016556,2]
[352895734,1739393443683,-926.03,0.00016556,2]
[352895736,1739393443693,-1028.4,0.00016556,2]
[352895738,1739393443703,-1000.0,0.00016556,2]
[352895740,1739393443712,-999.0,0.00016556,2]
[352895742,1739393443722,-842.79,0.00016556,2]
[352895744,1739393443731,-500.0,0.00016556,2]
[352895746,1739393443742,-1017.6,0.00016556,2]
[352895748,1739393443753,-1270.14,0.00016556,2]
[352895750,1739393443762,-500.0,0.00016556,2]
[352895752,1739393443772,-502.31128561,0.00016557,2]
[352895754,1739393443782,-34655.269009,0.00016557,3]
[352895757,1739393443793,-875.0,0.00016557,2]
[352895759,1739393443804,-458166.14676974,0.00016557,5]
[352895768,1739393443959,-2628.49312094,0.00016557,5]
[352895778,1739393444088,-930.95723145,0.00016557,5]
[352895782,1739393444123,-267.9,0.00016557,5]
[352895815,1739393444429,-500.0,0.00016552,2]
[352895817,1739393444439,-500.0,0.00016554,2]
[352895819,1739393444449,-500.0,0.00016554,2]
[352895821,1739393444459,-3125104.20545859,0.00016557,5]
[352896966,1739393979715,426.2252,8.973e-05,2]
[352896967,1739394508652,5000.0,8.973e-05,2]
[352896976,1739394613415,25399.7082,8.973e-05,2]
[352896999,1739394632313,-151.82,0.00010137,2]
[352897001,1739394632325,-500.0,0.00010644,2]
[352897003,1739394632336,-150.0,0.00010644,2]
[352897005,1739394632346,-500.0,0.00011151,2]
[352897007,1739394632355,-500.0,0.00011151,2]
[352897009,1739394632366,-150.0,0.00011151,2]
[352897011,1739394632376,-1507.15805812,0.00012056,2]
[352897012,1739394632386,-150.0,0.00012132,2]
[352897013,1739394632396,-550.0,0.00013,2]
[352897014,1739394632405,-128.92551649,0.00013618,2]
[352897016,1739394632422,-522.52448351,0.00013618,2]
[352897018,1739394632431,-500.0,0.00013699,2]
[352897020,1739394632441,-228.53895775,0.00013699,2]
[352897022,1739394632453,-5453.1983045,0.00013699,2]
[352897024,1739394632463,-327.48,0.00014951,2]
[352897026,1739394632473,-600.0,0.00015,2]
[352897028,1739394632483,-150.0,0.00015038,2]
[352897030,1739394632493,-3902.04087342,0.00015071,2]
[352897032,1739394632505,-1101.0,0.00015071,2]
[352897035,1739394632517,-957.83979752,0.00015071,2]
[352897037,1739394632526,-951.15,0.00015092,2]
[352897038,1739394632536,-150.0,0.000151,2]
[352897040,1739394632546,-150.0,0.00015104,2]
[352897042,1739394632555,-507.86,0.00015234,2]
[352897045,1739394632567,-492.42,0.00015275,2]
[352897047,1739394632578,-504.2,0.00015328,2]
[352897049,1739394632588,-629.2,0.00015378,2]
[352897051,1739394632598,-507.91,0.00015395,2]
[352897053,1739394632607,-483.84,0.00015409,2]
[352897055,1739394632617,-150.0,0.00015414,2]
[352897057,1739394632628,-503.3,0.00015483,2]
[352897059,1739394632637,-4019.99916793,0.00015507,2]
[352897061,1739394632647,-365.04,0.00015536,2]
[352897063,1739394632657,-165.61,0.00015536,2]
[352897065,1739394632666,-500.71,0.00015598,2]
[352897067,1739394632675,-1000.0,0.00015628,2]
[352897069,1739394632685,-300.0,0.00015706,2]
[352897071,1739394632695,-494.27,0.00015749,2]
[352897073,1739394632704,-1188.17463455,0.00015829,2]
[352897080,1739394632735,-473.33872835,0.00015829,2]
[352897083,1739394632747,-1008.495664,0.00015829,2]
[352897086,1739394632759,-2234.26609364,0.00015829,2]
[352897089,1739394632768,-150.0,0.00015876,2]
[352897092,1739394632778,-651.45,0.00015882,2]
[352897096,1739394632788,-783.0744481,0.000159,3]
[352897100,1739394632799,-943.7974135,0.000159,3]
[352897103,1739394632811,-366.1294468,0.000159,3]
[352897107,1739394632828,-927.61514,0.000159,3]
[352897111,1739394632839,-608.3835516,0.000159,3]
[352897113,1739394632849,-493.1,0.00015946,2]
[352897116,1739394632859,-150.0,0.00015963,2]
[352897119,1739394632868,-150.0,0.00016017,2]
[352897121,1739394632878,-150.0,0.00016039,2]
[352897123,1739394632888,-400.0,0.000162,5]
[352897125,1739394632898,-150.0,0.00016203,2]
[352897127,1739394632908,-454.8451077,0.00016225,2]
[352897129,1739394632917,-800.0,0.000163,5]
[352897131,1739394632927,-150.0,0.00016307,2]
[352897133,1739394632939,-509.88,0.00016337,2]
[352897135,1739394632948,-3331.51641,0.0001639,2]
[352897138,1739394632958,-1300.0,0.000164,5]
[352897141,1739394632967,-346.2314276,0.00016428,2]
[352897144,1739394632977,-502.99,0.00016438,2]
[352897147,1739394632986,-1109.0,0.00016452,2]
[352897150,1739394632995,-314.87726294,0.00016455,2]
[352897154,1739394633005,-520.10728548,0.00016478,3]
[352897158,1739394633014,-150.0,0.00016492,2]
[352897161,1739394633024,-50000.0,0.000165,6]
[352897164,1739394633034,-1700.0,0.000165,6]
[352897166,1739394633044,-1559.6812188,0.00016546,2]
[352897169,1739394633054,-5405.9684651,0.00016546,2]
[352897172,1739394633064,-1925.049756,0.00016546,2]
[352897174,1739394633075,-1369.8038868,0.00016546,2]
[352897177,1739394633085,-216.3704039,0.00016546,2]
[352897180,1739394633095,-500.0,0.00016552,2]
[352897183,1739394633105,-500.0,0.00016552,2]
[352897186,1739394633115,-500.0,0.00016552,2]
[352897188,1739394633126,-1015.13,0.00016552,2]
[352897191,1739394633136,-527.77,0.00016552,2]
[352897194,1739394633147,-500.0,0.00016552,2]
[352897197,1739394633157,-500.0,0.00016552,2]
[352897200,1739394633168,-500.0,0.00016552,2]
[352897204,1739394633178,-500.0,0.00016552,2]
[352897207,1739394633189,-500.0,0.00016552,2]
[352897210,1739394633199,-500.0,0.00016552,2]
[352897213,1739394633211,-500.0,0.00016552,2]
[352897215,1739394633220,-500.0,0.00016552,2]
[352897218,1739394633230,-500.0,0.00016552,2]
[352897220,1739394633240,-500.0,0.00016552,2]
[352897223,1739394633250,-708.77,0.00016552,2]
[352897226,1739394633260,-500.0,0.00016552,2]
[352897229,1739394633270,-500.0,0.00016552,2]
[352897231,1739394633286,-500.0,0.00016552,2]
[352897233,1739394633300,-500.0,0.00016552,2]
[352897236,1739394633309,-500.0,0.00016552,2]
[352897239,1739394633320,-580.38,0.00016552,2]
[352897242,1739394633331,-721.57,0.00016552,2]
[352897245,1739394633341,-500.0,0.00016552,2]
[352897248,1739394633351,-500.0,0.00016552,2]
[352897251,1739394633361,-500.0,0.00016552,2]
[352897254,1739394633371,-500.0,0.00016552,2]
[352897257,1739394633381,-500.0,0.00016552,2]
[352897260,1739394633391,-500.0,0.00016552,2]
[352897263,1739394633401,-500.0,0.00016552,2]
[352897266,1739394633412,-500.0,0.00016552,2]
[352897269,1739394633423,-500.0,0.00016552,2]
[352897272,1739394633434,-639.46,0.00016552,2]
[352897275,1739394633445,-500.0,0.00016552,2]
[352897278,1739394633456,-500.0,0.00016552,2]
[352897281,1739394633466,-500.0,0.00016552,2]
[352897284,1739394633478,-500.0,0.00016552,2]
[352897287,1739394633489,-500.0,0.00016552,2]
[352897290,1739394633500,-500.0,0.00016552,2]
[352897293,1739394633511,-500.0,0.00016552,2]
[352897297,1739394633521,-500.0,0.00016552,2]
[352897299,1739394633531,-500.0,0.00016552,2]
[352897302,1739394633542,-500.0,0.00016552,2]
[352897305,1739394633552,-500.0,0.00016552,2]
[352897308,1739394633562,-500.0,0.00016552,2]
[352897311,1739394633573,-541.76,0.00016552,2]
[352897314,1739394633584,-652.94,0.00016552,2]
[352897317,1739394633594,-500.0,0.00016552,2]
[352897320,1739394633604,-500.0,0.00016552,2]
[352897324,1739394633615,-500.0,0.00016552,2]
[352897327,1739394633624,-500.0,0.00016552,2]
[352897329,1739394633634,-500.0,0.00016552,2]
[352897332,1739394633644,-500.0,0.00016552,2]
[352897335,1739394633654,-500.0,0.00016552,2]
[352897338,1739394633664,-500.0,0.00016552,2]
[352897341,1739394633674,-430.90740786,0.00016552,2]
[352897344,1739394633687,-285.99259214,0.00016552,2]
[352897346,1739394633697,-500.0,0.00016552,2]
[352897348,1739394633707,-500.0,0.00016552,2]
[352897350,1739394633716,-803.77,0.00016552,2]
[352897352,1739394633727,-699.18,0.00016552,2]
[352897355,1739394633737,-17.151098,0.00016552,2]
[352897359,1739394633749,-365.66549,0.00016552,2]
[352897383,1739394633863,-117.183412,0.00016552,2]
[352897386,1739394633874,-500.0,0.00016552,2]
[352897389,1739394633885,-500.0,0.00016552,2]
[352897392,1739394633896,-500.0,0.00016552,2]
[352897395,1739394633905,-500.0,0.00016552,2]
[352897397,1739394633915,-500.0,0.00016552,2]
[352897399,1739394633925,-500.0,0.00016552,2]
[352897401,1739394633935,-500.0,0.00016552,2]
[352897403,1739394633944,-500.0,0.00016552,2]
[352897405,1739394633954,-826.56,0.00016552,2]
[352897407,1739394633964,-500.0,0.00016552,2]
[352897409,1739394633974,-500.0,0.00016552,2]
[352897411,1739394633984,-500.0,0.00016552,2]
[352897413,1739394633995,-689.66,0.00016552,2]
[352897415,1739394634005,-500.0,0.00016552,2]
[352897417,1739394634015,-500.0,0.00016552,2]
[352897419,1739394634025,-385.94507658,0.00016552,2]
[352897422,1739394634037,-114.05492342,0.00016552,2]
[352897424,1739394634047,-507.52,0.00016552,2]
[352897426,1739394634056,-500.0,0.00016553,2]
[352897428,1739394634066,-500.0,0.00016553,2]
[352897430,1739394634076,-500.0,0.00016553,2]
[352897432,1739394634086,-500.0,0.00016553,2]
[352897434,1739394634096,-260.07042158,0.00016553,2]
[352897436,1739394634106,-500.0,0.00016553,2]
[352897438,1739394634116,-614.34071164,0.00016553,2]
[352897440,1739394634127,-500.0,0.00016553,2]
[352897442,1739394634137,-500.0,0.00016553,2]
[352897444,1739394634148,-500.0,0.00016553,2]
[352897446,1739394634159,-170.71555598,0.00016553,2]
[352897448,1739394634170,-500.0,0.00016553,2]
[352897450,1739394634180,-500.0,0.00016553,2]
[352897452,1739394634190,-500.0,0.00016553,2]
[352897454,1739394634200,-500.0,0.00016553,2]
[352897456,1739394634210,-500.0,0.00016553,2]
[352897458,1739394634220,-500.0,0.00016553,2]
[352897460,1739394634230,-500.0,0.00016553,2]
[352897463,1739394634242,-500.0,0.00016553,2]
[352897464,1739394634252,-384.97356052,0.00016553,2]
[352897479,1739394634387,-115.02643948,0.00016553,2]
[352897483,1739394634426,-500.0,0.00016553,2]
[352897485,1739394634436,-500.0,0.00016553,2]
[352897487,1739394634446,-500.0,0.00016553,2]
[352897489,1739394634456,-500.0,0.00016553,2]
[352897491,1739394634466,-500.0,0.00016553,2]
[352897493,1739394634475,-500.0,0.00016553,2]
[352897495,1739394634485,-500.0,0.00016553,2]
[352897497,1739394634496,-500.0,0.00016553,2]
[352897500,1739394634506,-500.0,0.00016553,2]
[352897502,1739394634516,-500.0,0.00016553,2]
[352897504,1739394634526,-500.0,0.00016553,2]
[352897506,1739394634536,-500.0,0.00016553,2]
[352897508,1739394634546,-500.0,0.00016553,2]
[352897509,1739394634555,-500.0,0.00016553,2]
[352897511,1739394634565,-500.0,0.00016553,2]
[352897513,1739394634576,-500.0,0.00016553,2]
[352897515,1739394634585,-205.86562084,0.00016553,2]
[352897517,1739394634594,-500.0,0.00016553,2]
[352897519,1739394634604,-500.0,0.00016553,2]
[352897521,1739394634613,-500.0,0.00016553,2]
[352897523,1739394634623,-500.0,0.00016553,2]
[352897525,1739394634632,-500.0,0.00016553,2]
[352897527,1739394634642,-500.0,0.00016553,2]
[352897530,1739394634652,-500.0,0.00016553,2]
[352897532,1739394634663,-500.0,0.00016553,2]
[352897534,1739394634672,-500.0,0.00016553,2]
[352897536,1739394634682,-500.0,0.00016553,2]
[352897538,1739394634692,-500.0,0.00016553,2]
[352897540,1739394634702,-500.0,0.00016553,2]
[352897542,1739394634711,-500.0,0.00016553,2]
[352897544,1739394634721,-500.0,0.00016553,2]
[352897546,1739394634731,-500.0,0.00016553,2]
[352897548,1739394634740,-500.0,0.00016553,2]
[352897550,1739394634749,-500.0,0.00016553,2]
[352897551,1739394634759,-500.0,0.00016553,2]
[352897553,1739394634770,-500.0,0.00016553,2]
[352897555,1739394634779,-500.0,0.00016553,2]
[352897558,1739394634789,-500.0,0.00016553,2]
[352897560,1739394634799,-500.0,0.00016553,2]
[352897561,1739394634809,-500.0,0.00016553,2]
[352897563,1739394634819,-500.0,0.00016553,2]
[352897566,1739394634829,-500.0,0.00016553,2]
[352897568,1739394634839,-500.0,0.00016553,2]
[352897569,1739394634848,-500.0,0.00016553,2]
[352897572,1739394634858,-500.0,0.00016553,2]
[352897574,1739394634867,-500.0,0.00016553,2]
[352897576,1739394634877,-500.0,0.00016553,2]
[352897578,1739394634887,-500.0,0.00016553,2]
[352897580,1739394634896,-500.0,0.00016553,2]
[352897582,1739394634906,-500.0,0.00016553,2]
[352897584,1739394634915,-500.0,0.00016553,2]
[352897586,1739394634924,-109.10793968,0.00016553,2]
[352897588,1739394634937,-390.89206032,0.00016553,2]
[352897590,1739394634947,-500.0,0.00016553,2]
[352897592,1739394634957,-500.0,0.00016553,2]
[352897594,1739394634967,-500.0,0.00016553,2]
[352897596,1739394634977,-500.0,0.00016553,2]
[352897598,1739394634986,-553.03,0.00016553,2]
[352897600,1739394634996,-500.0,0.00016553,2]
[352897602,1739394635006,-500.0,0.00016553,2]
[352897604,1739394635015,-500.0,0.00016553,2]
[352897606,1739394635025,-500.0,0.00016553,2]
[352897608,1739394635035,-500.0,0.00016553,2]
[352897610,1739394635046,-500.0,0.00016553,2]
[352897612,1739394635055,-156.07793958,0.00016553,2]
[352897614,1739394635067,-50.4498239,0.00016553,2]
[352897616,1739394635078,-500.0,0.00016553,2]
[352897618,1739394635087,-500.0,0.00016553,2]
[352897620,1739394635097,-500.0,0.00016553,2]
[352897622,1739394635107,-500.0,0.00016553,2]
[352897624,1739394635117,-500.0,0.00016553,2]
[352897627,1739394635127,-500.0,0.00016553,2]
[352897629,1739394635136,-500.0,0.00016553,2]
[352897631,1739394635146,-500.0,0.00016553,2]
[352897633,1739394635156,-500.0,0.00016553,2]
[352897635,1739394635166,-500.0,0.00016553,2]
[352897637,1739394635175,-500.0,0.00016553,2]
[352897639,1739394635184,-329.5501761,0.00016553,2]
[352897641,1739394635196,-170.4498239,0.00016553,2]
[352897643,1739394635206,-500.0,0.00016553,2]
[352897645,1739394635216,-500.0,0.00016553,2]
[352897647,1739394635225,-379.5501761,0.00016553,2]
[352897650,1739394635246,-120.4498239,0.00016553,2]
[352897652,1739394635256,-421.78870436,0.00016553,2]
[352897654,1739394635268,-78.21129564,0.00016553,2]
[352897656,1739394635277,-500.0,0.00016553,2]
[352897658,1739394635288,-500.0,0.00016553,2]
[352897660,1739394635300,-500.0,0.00016553,2]
[352897662,1739394635310,-500.0,0.00016553,2]
[352897664,1739394635319,-500.0,0.00016553,2]
[352897666,1739394635328,-500.0,0.00016553,2]
[352897668,1739394635338,-500.0,0.00016553,2]
[352897670,1739394635347,-500.0,0.00016553,2]
[352897672,1739394635357,-933.14,0.00016553,2]
[352897674,1739394635367,-832.67,0.00016553,2]
[352897676,1739394635377,-500.0,0.00016553,2]
[352897678,1739394635386,-1831.57,0.00016553,2]
[352897680,1739394635395,-809.31,0.00016553,2]
[352897682,1739394635405,-1550.08,0.00016553,2]
[352897684,1739394635414,-1826.14,0.00016553,2]
[352897685,1739394635424,-1276.08,0.00016553,2]
[352897688,1739394635433,-500.0,0.00016553,2]
[352897689,1739394635443,-1216.83,0.00016553,2]
[352897692,1739394635453,-1059.54,0.00016553,2]
[352897693,1739394635462,-535.11,0.00016553,2]
[352897695,1739394635471,-1158.67,0.00016553,2]
[352897697,1739394635481,-1266.86,0.00016553,2]
[352897699,1739394635490,-1690.09,0.00016553,2]
[352897701,1739394635500,-1084.98,0.00016553,2]
[352897703,1739394635509,-500.0,0.00016553,2]
[352897705,1739394635519,-841.64,0.00016553,2]
[352897707,1739394635528,-914.49,0.00016553,2]
[352897709,1739394635538,-500.0,0.00016553,2]
[352897711,1739394635547,-500.0,0.00016553,2]
[352897713,1739394635558,-500.0,0.00016553,2]
[352897716,1739394635568,-500.0,0.00016553,2]
[352897717,1739394635578,-500.0,0.00016553,2]
[352897719,1739394635587,-500.0,0.00016553,2]
[352897721,1739394635596,-1687.66,0.00016553,2]
[352897723,1739394635606,-500.0,0.00016553,2]
[352897725,1739394635615,-500.0,0.00016553,2]
[352897727,1739394635625,-849.46,0.00016553,2]
[352897730,1739394635635,-500.0,0.00016554,2]
[352897732,1739394635644,-500.0,0.00016554,2]
[352897733,1739394635654,-500.0,0.00016554,2]
[352897735,1739394635663,-766.21,0.00016554,2]
[352897737,1739394635672,-500.0,0.00016554,2]
[352897740,1739394635682,-500.0,0.00016554,2]
[352897741,1739394635691,-500.0,0.00016554,2]
[352897744,1739394635701,-500.0,0.00016554,2]
[352897746,1739394635711,-599.21,0.00016554,2]
[352897747,1739394635720,-500.0,0.00016554,2]
[352897748,1739394635729,-601.51,0.00016554,2]
[352897749,1739394635738,-500.0,0.00016554,2]
[352897750,1739394635747,-500.0,0.00016554,2]
[352897751,1739394635756,-500.0,0.00016554,2]
[352897752,1739394635765,-500.0,0.00016554,2]
[352897753,1739394635774,-500.0,0.00016554,2]
[352897754,1739394635784,-500.0,0.00016554,2]
[352897755,1739394635793,-500.0,0.00016554,2]
[352897756,1739394635802,-500.0,0.00016554,2]
[352897757,1739394635811,-500.0,0.00016554,2]
[352897758,1739394635822,-500.0,0.00016554,2]
[352897759,1739394635832,-500.0,0.00016554,2]
[352897761,1739394635843,-500.0,0.00016554,2]
[352897763,1739394635852,-500.0,0.00016554,2]
[352897765,1739394635861,-500.0,0.00016554,2]
[352897766,1739394635870,-500.0,0.00016554,2]
[352897769,1739394635879,-500.0,0.00016554,2]
[352897770,1739394635889,-500.0,0.00016554,2]
[352897772,1739394635898,-1978.43,0.00016554,2]
[352897774,1739394635908,-500.0,0.00016554,2]
[352897776,1739394635917,-500.0,0.00016554,2]
[352897778,1739394635927,-2099.85,0.00016554,2]
[352897780,1739394635937,-841.82,0.00016554,2]
[352897782,1739394635946,-973.66,0.00016554,2]
[352897784,1739394635956,-763.52,0.00016554,2]
[352897786,1739394635965,-524.416882,0.00016554,2]
[352897788,1739394635975,-1156.09,0.00016554,2]
[352897790,1739394635985,-534.840117,0.00016554,2]
[352897792,1739394635995,-563.01,0.00016554,2]
[352897794,1739394636004,-500.0,0.00016554,2]
[352897796,1739394636014,-168.786985,0.00016554,2]
[352897798,1739394636023,-947.87,0.00016554,2]
[352897800,1739394636034,-795.33,0.00016554,2]
[352897802,1739394636043,-156.054235,0.00016554,2]
[352897804,1739394636053,-500.0,0.00016554,2]
[352897806,1739394636062,-881.23,0.00016554,2]
[352897808,1739394636072,-500.0,0.00016554,2]
[352897811,1739394636082,-570.49,0.00016554,2]
[352897813,1739394636091,-1103.23,0.00016554,2]
[352897815,1739394636100,-561.24,0.00016554,2]
[352897817,1739394636110,-1260.7,0.00016554,2]
[352897819,1739394636121,-1221.53,0.00016554,2]
[352897821,1739394636131,-635.78,0.00016554,2]
[352897823,1739394636142,-1158.01,0.00016554,2]
[352897825,1739394636152,-1492.84,0.00016554,2]
[352897827,1739394636161,-4380.65,0.00016554,2]
[352897829,1739394636170,-1603.04,0.00016554,2]
[352897831,1739394636181,-1798.32,0.00016554,2]
[352897833,1739394636190,-1015.43,0.00016554,2]
[352897835,1739394636200,-2975.56,0.00016554,2]
[352897837,1739394636210,-500.0,0.00016554,2]
[352897839,1739394636220,-615.57,0.00016554,2]
[352897841,1739394636230,-1263.26,0.00016554,2]
[352897843,1739394636240,-1240.99,0.00016554,2]
[352897844,1739394636250,-1812.81,0.00016554,2]
[352897847,1739394636260,-165.383103,0.00016554,2]
[352897849,1739394636270,-500.0,0.00016554,2]
[352897851,1739394636280,-156.631137,0.00016554,2]
[352897853,1739394636291,-161.399216,0.00016554,2]
[352897855,1739394636302,-500.0,0.00016554,2]
[352897857,1739394636312,-155.770577,0.00016554,2]
[352897859,1739394636323,-849.36,0.00016554,2]
[352897861,1739394636332,-1194.22,0.00016554,2]
[352897863,1739394636343,-500.0,0.00016554,2]
[352897865,1739394636353,-500.0,0.00016554,2]
[352897867,1739394636363,-500.0,0.00016554,2]
[352897869,1739394636374,-500.0,0.00016554,2]
[352897882,1739394636487,-500.0,0.00016554,2]
[352897885,1739394636513,-500.0,0.00016554,2]
[352897887,1739394636524,-500.0,0.00016554,2]
[352897889,1739394636533,-213.38907595,0.00016554,2]
[352897891,1739394636542,-500.0,0.00016554,2]
[352897893,1739394636552,-500.0,0.00016554,2]
[352897895,1739394636561,-500.0,0.00016554,2]
[352897897,1739394636571,-500.0,0.00016554,2]
[352897899,1739394636581,-500.0,0.00016554,2]
[352897901,1739394636591,-500.0,0.00016554,2]
[352897903,1739394636600,-500.0,0.00016554,2]
[352897905,1739394636610,-500.0,0.00016554,2]
[352897907,1739394636620,-500.0,0.00016554,2]
[352897909,1739394636629,-404.17697157,0.00016554,2]
[352897911,1739394636639,-500.0,0.00016554,2]
[352897913,1739394636648,-354.78971373,0.00016554,2]
[352897915,1739394636658,-500.0,0.00016555,2]
[352897917,1739394636667,-500.0,0.00016555,2]
[352897919,1739394636677,-500.0,0.00016555,2]
[352897921,1739394636686,-500.0,0.00016555,2]
[352897923,1739394636696,-500.0,0.00016555,2]
[352897925,1739394636705,-500.0,0.00016555,2]
[352897927,1739394636715,-503.29427738,0.00016555,2]
[352897929,1739394636724,-500.0,0.00016555,2]
[352897931,1739394636734,-500.0,0.00016555,2]
[352897933,1739394636743,-303.77324096,0.00016555,2]
[352897935,1739394636752,-500.0,0.00016555,2]
[352897937,1739394636761,-501.40731737,0.00016555,2]
[352897939,1739394636771,-530.41,0.00016555,2]
[352897941,1739394636780,-500.0,0.00016555,2]
[352897943,1739394636790,-500.0,0.00016555,2]
[352897945,1739394636800,-500.0,0.00016555,2]
[352897947,1739394636810,-500.0,0.00016555,2]
[352897949,1739394636820,-500.0,0.00016555,2]
[352897951,1739394636829,-500.0,0.00016555,2]
[352897953,1739394636839,-500.0,0.00016555,2]
[352897955,1739394636848,-500.0,0.00016555,2]
[352897957,1739394636857,-500.0,0.00016555,2]
[352897959,1739394636867,-500.0,0.00016555,2]
[352897961,1739394636876,-755.54,0.00016555,2]
[352897963,1739394636885,-500.0,0.00016555,2]
[352897965,1739394636894,-500.0,0.00016555,2]
[352897967,1739394636904,-500.0,0.00016555,2]
[352897969,1739394636913,-500.0,0.00016555,2]
[352897971,1739394636923,-500.0,0.00016555,2]
[352897973,1739394636933,-500.0,0.00016555,2]
[352897975,1739394636942,-500.0,0.00016555,2]
[352897977,1739394636952,-500.0,0.00016555,2]
[352897979,1739394636961,-500.0,0.00016555,2]
[352897981,1739394636971,-500.0,0.00016555,2]
[352897983,1739394636980,-682.55,0.00016555,2]
[352897985,1739394636990,-500.0,0.00016555,2]
[352897987,1739394636999,-500.96545758,0.00016555,2]
[352897989,1739394637009,-500.0,0.00016555,2]
[352897991,1739394637019,-500.0,0.00016555,2]
[352897993,1739394637028,-500.0,0.00016555,2]
[352897995,1739394637038,-500.0,0.00016555,2]
[352897997,1739394637047,-500.0,0.00016555,2]
[352897999,1739394637057,-500.0,0.00016555,2]
[352898001,1739394637066,-500.0,0.00016555,2]
[352898003,1739394637076,-478.04420244,0.00016555,2]
[352898005,1739394637085,-500.0,0.00016555,2]
[352898007,1739394637095,-500.0,0.00016555,2]
[352898009,1739394637105,-500.0,0.00016555,2]
[352898011,1739394637115,-500.0,0.00016555,2]
[352898013,1739394637124,-500.0,0.00016555,2]
[352898015,1739394637134,-500.0,0.00016555,2]
[352898017,1739394637143,-500.0,0.00016555,2]
[352898019,1739394637155,-500.0,0.00016555,2]
[352898021,1739394637164,-500.0,0.00016555,2]
[352898022,1739394637174,-500.0,0.00016555,2]
[352898023,1739394637184,-738.81,0.00016555,2]
[352898024,1739394637194,-500.0,0.00016555,2]
[352898025,1739394637204,-500.0,0.00016555,2]
[352898026,1739394637214,-608.59,0.00016555,2]
[352898027,1739394637224,-500.0,0.00016555,2]
[352898028,1739394637233,-557.48,0.00016555,2]
[352898029,1739394637244,-500.0,0.00016555,2]
[352898031,1739394637254,-500.0,0.00016555,2]
[352898033,1739394637264,-500.0,0.00016555,2]
[352898035,1739394637273,-500.0,0.00016555,2]